Cogmind - Beta 10.2 @@@ ROGUE MODE // 2021.12.18 @ 12:18:36 Player: art-hropod Result: Self-destructed Performance ------------- Evolutions (3) 1500 Regions Visited (4) 800 Robots Destroyed (45) 225 Value Destroyed (1112) 1112 Prototype IDs (0) 0 Alien Tech Used (0) 0 Bonus (111) 111 TOTAL SCORE: 3748 Bonus ------- High Alert Combat Kills 111 Cogmind --------- Core Integrity 700/700 Matter 248/300 Energy 800/800 System Corruption 0% Temperature Cool (0) Movement Walking (150) Ox1 Location -7/Factory Parts ------- > --- POWER (2) -------- Ion Engine Ion Engine > --- PROPULSION (4) --- Aluminum Leg Aluminum Leg Aluminum Leg Carbon-fiber Leg > --- UTILITY (5) ------ High-capacity Storage Unit High-capacity Battery Advanced Targeting Computer > --- WEAPON (2) ------- EMP Blaster EMP Blaster > --- INVENTORY (12) --- Light Ion Engine Aluminum Leg Aluminum Leg Aluminum Leg Coolant Injector Small Storage Unit Improved Targeting Computer Improved ECM Suite Heavy Assault Rifle Heavy Missile Launcher Heavy Missile Launcher Peak State ------------ > --- POWER ------------ Ion Engine Ion Engine > --- PROPULSION ------- Aluminum Leg Aluminum Leg Aluminum Leg Carbon-fiber Leg > --- UTILITY ---------- High-capacity Storage Unit High-capacity Battery Advanced Targeting Computer > --- WEAPON ----------- EMP Blaster EMP Blaster > --- INVENTORY -------- Light Ion Engine Aluminum Leg Aluminum Leg Aluminum Leg Coolant Injector Small Storage Unit Improved ECM Suite Heavy Missile Launcher Heavy Missile Launcher [Rating: 19] Favorites ----------- Power Ion Engine Engine Ion Engine Propulsion Aluminum Leg Treads Light Treads Leg Aluminum Leg Utility High-capacity Battery Storage High-capacity Battery Processor Advanced Targeting Computer Weapon EMP Blaster Ballistic Gun Assault Rifle Launcher EMP Blaster Build | -11 -10 -9 -8 -7 ------- Run | Scr Mat Mat Mat Fac Slots Evolved 6 | . . 2 2 2 Power 1 | . . . 1 . Propulsion 2 | . . 2 . . Utility 3 | . . . 1 2 Weapon . | . . . . . Parts Attached 25 | 5 4 6 10 . Power 2 | 1 . . 1 . Engine 2 | 1 . . 1 . Core . | . . . . . Reactor . | . . . . . Propulsion 11 | 2 . 4 5 . Treads 1 | . . 1 . . Leg 10 | 2 . 3 5 . Wheel . | . . . . . Hover . | . . . . . Flight . | . . . . . Utility 6 | 1 3 . 2 . Device . | . . . . . Storage 5 | 1 3 . 1 . Processor 1 | . . . 1 . Hackware . | . . . . . Protection . | . . . . . Artifact . | . . . . . Weapon 6 | 1 1 2 2 . Energy Gun . | . . . . . Energy Cannon . | . . . . . Ballistic Gun 2 | 1 1 . . . Ballistic Cannon . | . . . . . Launcher 4 | . . 2 2 . Special Weapon . | . . . . . Impact Weapon . | . . . . . Slashing Weapon . | . . . . . Piercing Weapon . | . . . . . Special Melee Weapon . | . . . . . Unidentified Prototypes . | . . . . . Parts Lost 4 | . . . 4 . Power . | . . . . . Propulsion 2 | . . . 2 . Utility . | . . . . . Weapon 2 | . . . 2 . Highest Loss Streak 2 | . . . 2 . Average Slot Usage (%) 93 | . 87 97 99 . Engine 14 | . 14 11 18 . Treads 1 | . . 5 . . Leg 32 | . 28 36 35 . Storage 22 | . 25 22 18 . Processor 3 | . . . 9 . Ballistic Gun 8 | . 18 . . . Launcher 10 | . . 20 17 . Naked Turns . | . . . . . Heaviest Build 54 | 11 43 21 54 . Greatest Support 45 | 20 20 40 45 . Greatest Overweight (x) 2 | . 2 . 1 . Average Overweight (x) . | . . . . . Largest Inventory Capacity 12 | 6 12 6 12 . Average Capacity 7 | 5 6 6 10 . Most Carried 11 | 5 6 6 11 . Average Carried 5 | 3 4 5 7 . Final Capacity 12 | 6 6 6 12 12 Final Carried 11 | 5 6 6 11 11 Class Distribution -------------------- 87% | Mutant 12% | Scavenger-Mutant Dominant Class ---------------- Mutant | -10/Materials Mutant | -9/Materials Mutant | -8/Materials Mutant | -7/Factory Resources | -11 -10 -9 -8 -7 ----------- Run | Scr Mat Mat Mat Fac Matter Collected 712 | 189 35 226 262 . Remotely . | . . . . . Salvage Created 1572 | . 85 382 1105 . Parts 103 | . 9 24 70 . Haulers Intercepted 3 | . . . 3 . Recyclers Shooed 2 | . 1 1 . . Parts Field Recycled . | . . . . . Retrieved Matter . | . . . . . Parts Self-Destructed . | . . . . . Prevented . | . . . . . Kills | -11 -10 -9 -8 -7 ------- Run | Scr Mat Mat Mat Fac Combat Hostiles Destroyed 30 | . 4 7 19 . Guns 4 | . 4 . . . AOE 24 | . . 6 18 . Classes Destroyed 8 | . 2 4 2 . Worker 3 | . . 1 2 . Builder 6 | . . 2 4 . Hauler 3 | . . . 3 . Mechanic 1 | . . . 1 . Watcher 2 | . . 2 . . Swarmer 10 | . 3 . 7 . Grunt 15 | . 1 5 9 . Sentry 5 | . . 2 3 . Best Kill Streak 12 | . 3 10 12 . Combat Bots Only 7 | . 3 7 7 . Max Kills in Single Turn 5 | . 1 2 5 . Gunslinging . | . . . . . Exploded 4 | . . 2 4 . Melee . | . . . . . Uniques/NPCs Destroyed . | . . . . . Combat | -11 -10 -9 -8 -7 -------- Run | Scr Mat Mat Mat Fac Damage Taken 1112 | . 212 324 576 . Core 116 | . 66 14 36 . Absorbed by Shields . | . . . . . Core Remaining (%) 90 | 100 73 96 93 . Volleys Fired 58 | 2 24 12 20 . Largest 2 | 1 2 2 2 . Hottest 66 | 20 40 66 66 . Shots Fired 91 | 2 28 24 37 . Gun 30 | 2 28 . . . Cannon . | . . . . . Launcher 61 | . . 24 37 . Special . | . . . . . Kinetic 30 | 2 28 . . . Thermal . | . . . . . Explosive . | . . . . . Electromagnetic 61 | . . 24 37 . Robot Hit Streak 12 | 1 5 7 12 . Robot Miss Streak 3 | 1 2 3 2 . Penetration Max . | . . . . . Secondary Targets . | . . . . . Shots Hit Robots 55 | 1 19 14 21 . Core Hits 69 | 1 8 16 44 . Critical Hits . | . . . . . Critical Kills . | . . . . . Critical Parts Destroyed . | . . . . . Melee Attacks . | . . . . . Impact . | . . . . . Slashing . | . . . . . Piercing . | . . . . . Sneak Attacks . | . . . . . Combat Hostiles . | . . . . . Follow-up Attacks . | . . . . . Damage Inflicted 2626 | 23 246 818 1539 . Guns 269 | 23 246 . . . Cannons . | . . . . . Explosions 2357 | . . 818 1539 . Melee . | . . . . . Ramming . | . . . . . Kinetic 269 | 23 246 . . . Thermal 381 | . . . 381 . Explosive 154 | . . 154 . . Electromagnetic 1822 | . . 664 1158 . Impact . | . . . . . Slashing . | . . . . . Piercing . | . . . . . Highest Corruption . | . . . . . Average Corruption . | . . . . . Corruption Purged . | . . . . . Overload Shots . | . . . . . Overflow Damage 73 | . . 30 43 . Projectiles . | . . . . . Explosions 73 | . . 30 43 . Melee . | . . . . . Knockbacks . | . . . . . Impact . | . . . . . Kinetic . | . . . . . Secondary . | . . . . . Self-Inflicted Damage 200 | . . 76 124 . Shots 18 | . . 5 13 . Rammed . | . . . . . Targets Rammed . | . . . . . Kicked . | . . . . . Crushed . | . . . . . Highest Temperature 63 | . 2 14 63 . Average Temperature 14 | . 2 8 16 . Received Heat Transfer 264 | . 78 78 108 . Siege Activations . | . . . . . Robots Corrupted 2 | . . 1 1 . Combat Hostiles 2 | . . 1 1 . Parts Fried 12 | . . 9 3 . Impact Corruptions . | . . . . . Robots Melted . | . . . . . Combat Hostiles . | . . . . . Parts Melted . | . . . . . Heat Transferred 500 | . . . 500 . Parts Sabotaged . | . . . . . Parts Stolen . | . . . . . Parts Stripped . | . . . . . Power Chain Reactions 10 | . . . 10 . Missiles Intercepted . | . . . . . Alert | -11 -10 -9 -8 -7 ------- Run | Scr Mat Mat Mat Fac Peak Influence 737 | . 145 311 737 . Initial 244 | . . 12 131 244 Average 177 | . 46 141 391 . Maximum Alert Level 3 | . . 1 3 . Low Security (%) 66 | 100 100 58 24 . Level 1 20 | . . 41 36 . Level 2 9 | . . . 28 . Level 3 3 | . . . 10 . Level 4 . | . . . . . Level 5 . | . . . . . High Security . | . . . . . Max Security . | . . . . . Squads Dispatched 3 | . 1 1 1 . Investigation 2 | . 1 1 . . Extermination . | . . . . . Reinforcement 1 | . . . 1 . Assault . | . . . . . Garrison . | . . . . . Intercept . | . . . . . Construction Impeded 1 | . . . 1 . Haulers Reinforced . | . . . . . Stealth | -11 -10 -9 -8 -7 --------- Run | Scr Mat Mat Mat Fac Distress Signals 2 | . 1 1 . . Communications Jammed . | . . . . . Distress Signals . | . . . . . Times Spotted 43 | . 10 12 21 . Peak Tracking Total 5 | . 5 5 5 . Tactical Retreats 3 | . 1 1 1 . Traps | -11 -10 -9 -8 -7 ------- Run | Scr Mat Mat Mat Fac Traps Triggered 4 | . 2 1 1 . Indirectly 1 | . . 1 . . Trap Hack Attempts . | . . . . . Triggered . | . . . . . Disarmed . | . . . . . Reprogrammed . | . . . . . Reused . | . . . . . Traps Extracted . | . . . . . Installed . | . . . . . Triggered . | . . . . . Machines | -11 -10 -9 -8 -7 ---------- Run | Scr Mat Mat Mat Fac Machines Disabled 6 | . . 3 3 . Max in Single Turn 2 | . . 2 1 . Machines Sabotaged . | . . . . . Garrisons Compromised . | . . . . . Overloaded Fab Kills . | . . . . . Fab Network Shutdowns . | . . . . . Hacking | -11 -10 -9 -8 -7 --------- Run | Scr Mat Mat Mat Fac Machines Accessed 1 | . 1 . . . Terminals 1 | . 1 . . . Fabricators . | . . . . . Repair Stations . | . . . . . Recycling Units . | . . . . . Scanalyzers . | . . . . . Garrison Access . | . . . . . Total Hacks 2 | . 2 . . . Successful 2 | . 2 . . . Failed . | . . . . . Catastrophic . | . . . . . Database Lockouts . | . . . . . Manual . | . . . . . Terminals 2 | . 2 . . . Fabricators . | . . . . . Repair Stations . | . . . . . Recycling Units . | . . . . . Scanalyzers . | . . . . . Garrison Access . | . . . . . Terminal Hacks 2 | . 2 . . . Record 1 | . 1 . . . Emergency Access Points 1 | . 1 . . . Fabricator Hacks . | . . . . . Repair Station Hacks . | . . . . . Recycling Unit Hacks . | . . . . . Scanalyzer . | . . . . . Garrison Access Hacks . | . . . . . Unauthorized Hacks . | . . . . . Terminals . | . . . . . Fabricators . | . . . . . Repair Stations . | . . . . . Recycling Units . | . . . . . Scanalyzers . | . . . . . Garrison Access . | . . . . . Data Cores Recovered . | . . . . . Used . | . . . . . Hacking Detections . | . . . . . Full Trace Events . | . . . . . Feedback Events . | . . . . . Feedback Blocked . | . . . . . Robot Schematics Acquired . | . . . . . Robots Built . | . . . . . Matter . | . . . . . Time . | . . . . . Total Robot Build Rating . | . . . . . Part Schematics Acquired . | . . . . . Parts Built . | . . . . . Matter . | . . . . . Time . | . . . . . Total Part Build Rating . | . . . . . Parts Repaired . | . . . . . Time . | . . . . . Parts Recycled . | . . . . . Recycled Matter . | . . . . . Retrieved Matter . | . . . . . Retrieved Components . | . . . . . Parts Scanalyzed . | . . . . . Part Schematics Acquired . | . . . . . Parts Damaged . | . . . . . Bothacking | -11 -10 -9 -8 -7 ------------ Run | Scr Mat Mat Mat Fac Used RIF Installer . | . . . . . Robots Hacked . | . . . . . Non-combat . | . . . . . Combat . | . . . . . Robot Hacks Applied . | . . . . . Relay Couplers Released . | . . . . . Robots Rewired . | . . . . . Allies Hacked . | . . . . . Hacks Repelled . | . . . . . Allies | -11 -10 -9 -8 -7 -------- Run | Scr Mat Mat Mat Fac Total Allies . | . . . . . Largest Group . | . . . . . Highest-Rated Group . | . . . . . Highest-Rated Ally . | . . . . . Total Orders . | . . . . . Ally Attacks . | . . . . . Total Damage . | . . . . . Kills . | . . . . . Allies Corrupted . | . . . . . Allies Melted . | . . . . . Intel | -11 -10 -9 -8 -7 ------- Run | Scr Mat Mat Mat Fac Robot Analysis Total . | . . . . . Derelict Logs Recovered . | . . . . . Drone Launches . | . . . . . Drone Recoveries . | . . . . . Exploration | -11 -10 -9 -8 -7 ------------- Run | Scr Mat Mat Mat Fac Turns Passed 1248 | 87 499 244 418 . Spaces Moved 764 | 64 297 159 244 . Core 11 | 11 . . . . Treads . | . . . . . Legs 753 | 53 297 159 244 . Wheels . | . . . . . Hover . | . . . . . Flight . | . . . . . Fastest Speed 50 | 50 120 120 120 . Average Speed 125 | 107 121 120 138 . Slowest Speed 180 | 120 180 120 150 . Overloaded Moves . | . . . . . Propulsion Burnouts . | . . . . . Robots Hopped . | . . . . . Cave-ins Triggered . | . . . . . Exploration Rate (%) 23 | 4 45 16 29 . Regions Visited 4 Branch Regions . Pre-discovered Areas . | . . . . . Known Exits Taken . | . . . . . Unknown Exits Taken 4 | 1 1 1 1 . Scrap Searched . | . . . . . Spaces Dug . | . . . . . Terrain Destroyed 95 | . . 59 36 . Melee . | . . . . . Projectile . | . . . . . AOE 95 | . . 59 36 . Terrain Rammed . | . . . . . Walls Destroyed . | . . . . . Machines Disabled . | . . . . . Actions | -11 -10 -9 -8 -7 --------- Run | Scr Mat Mat Mat Fac Total 963 | 80 407 192 284 . Wait 78 | . 78 . . . Move 760 | 63 296 158 243 . Hop . | . . . . . Pick Up 33 | 10 4 8 11 . Fast Attach 1 | . . 1 . . Attach 17 | 5 2 4 6 . Detach . | . . . . . Swap 7 | . 2 1 4 . Drop 9 | . 1 8 . . Fire 58 | 2 24 12 20 . Melee . | . . . . . Ram . | . . . . . Kick . | . . . . . Crush . | . . . . . Escape Stasis . | . . . . . Rewire . | . . . . . Trap . | . . . . . Miscellaneous . | . . . . . Route ------- -11/Scrapyard -10/Materials -9/Materials -8/Materials -7/Factory History --------- Turn | Location | Event 4 | -11/Scrapyard | Discovered new exit (range 14) 88 | -11/Scrapyard | Entered Materials 305 | -10/Materials | Build established: Mutant 558 | -10/Materials | Discovered new exit (range 11) 587 | -10/Materials | Entered another Materials area 587 | -9/Materials | Evolved 2 slots: Propulsion x2 764 | -9/Materials | Destroyed 7 combat bots 805 | -9/Materials | Discovered new exit (range 16) 831 | -9/Materials | Entered another Materials area 831 | -8/Materials | Evolved 2 slots: Power x1, Utility x1 1135 | -8/Materials | Destroyed 7 combat bots 1225 | -8/Materials | Discovered new exit (range 15) 1249 | -8/Materials | Entered Factory 1249 | -7/Factory | Evolved 2 slots: Utility x2 1249 | -7/Factory | Self-destructed Last Messages --------------- 01173_ Triggered Explosive Trap. 01173_ An explosion rips through the floor. 01173_ Atomic Centrifuge disabled. 01177_ K-01 Serf collects debris. 01183_ Terminal disabled. 01183_ K-01 Serf destroyed. 01184_ K-01 Serf collects debris. 01186_ S-10 Pest destroyed. 01187_ K-01 Serf collects debris. 01195_ Y-45 Defender destroyed. 01196_ U-05 Engineer lays Concrete. 01196_ U-05 Engineer builds a Wall. 01197_ U-05 Engineer builds a Door. 01201_ K-01 Serf collects debris. 01209_ Acquired 7 matter. 01218_ Acquired Hvy. Assault Rifle. 01225_ EXIT=FOUND PARAMETERS=UTILITY_2 LOCATION=UNKNOWN GOAL=ESCAPE Map ----- +----------------------------------------------------+ | ???????????????????????????????????????????? | | ???????????????????????????????????????????? | | ???????????????????????????????????????????? | | ???????????????????????????????????????????? | | ???????????????????????????????????????????? | | ???????????????????????????????????????????? | | ???????????????????????????????????????????? | | ???????????????????????????????????????????? | | ???????????????????????????????????????????? | | ???????????????????????????????????????????? | | ??????????????????? "?????????????????????? | | ??????????????????? ???????????????????? | | ??????????????????? ??????????????????? | | ??????????????????? #??????????????????? | | ??????????????????? #??????????????????? | | ??????????????????? #??????????????????? | | ??????????????????? #??????????????????? | | ??????????????????# #??????????????????? | | ??????????????????# +??????????????????? | | ??????????????????# #??????????????????? | | ??????????????????# #??????????????????? | | ??????????????????# #??????????????????? | | ????????????????### #??????????????????? | | ????????????????# #??????????????????? | | ????????????????# #??????????????????? | | ????????????????# @ +??????????????????? | | ????????????????# #??????????????????? | | ????????????????# #??????????????????? | | ????????????????### #??????????????????? | | ??????????????????# #??????????????????? | | ??????????????????# #??????????????????? | | ??????????????????# #??????????????????? | | ??????????????????# +??????????????????? | | ??????????????????# #??????????????????? | | ??????????????????? #??????????????????? | | ??????????????????? #??????????????????? | | ??????????????????? #??????????????????? | | ??????????????????? ??????????????????? | | ??????????????????? ??????????????????? | | ??????????????????? ???????????????????? | | ??????????????????? ?????????????????????? | | ???????????????????????????????????????????? | | ???????????????????????????????????????????? | | ???????????????????????????????????????????? | | ???????????????????????????????????????????? | | ???????????????????????????????????????????? | | ???????????????????????????????????????????? | | ???????????????????????????????????????????? | | ???????????????????????????????????????????? | | ???????????????????????????????????????????? | +----------------------------------------------------+ Best States ------------- Heat Dissipation 31 Energy Generation 15 Energy Capacity 800 Matter Stores 300 Matter Capacity 300 Sight Range 16 Terrain Scan Density 10 Evasion (%) 40 Targeting Accuracy 8 Item Schematics ----------------- None Robot Schematics ------------------ None Fabricated ------------ Nothing Alien Tech Used ----------------- None Achievements -------------- None Challenges ------------ None Game ------ Seed PoweredAlphaSheargun Manual? 0 Play Time 00:23:22 Cumulative 8.8 hours Start 2021.12.01 @ 04:51:57 End 2021.12.18 @ 12:18:36 Sessions 7 Manual Loads 0 Difficulty Rogue Special Mode None Game No. 8 Rogue 8 Adventurer 0 Explorer 0 Win Type - Total 0 Types 0/0/0/0/0/0/0/0/0 Lore% 10 Gallery% 14 Achievement% 10 Wizard Run 0 Options --------- ASCII 0 Keyboard 0 Movement Mouse Keybinds 0 Fullscreen 1 Font 32/SmallcapsGlow Map View 63x52 Tactical HUD 1 Map Filters NONE Filters NONE Steam 1 RUN: e158fb40-b030-49d3-a7bc-23ce8d54a03b